[Event "Titled Tuesday Blitz March 28 Early 2023"]
[White "Ibadov, Dashgyn"]
[Black "Iljin, Timofey"]
[WhiteFideId "24107514"]
[BlackFideId "14110180"]
[WhiteElo "2208"]
[BlackElo "2397"]
[Result "1-0"]
[Round "09"]
[TimeControl "180+2"]
[Date "2023.03.28"]
[WhiteClock "0:00:28"]
[BlackClock "0:00:04"]

1. e4 {[%clk 0:03:00]}  e5 {[%clk 0:02:58]} 2. Nf3 {[%clk 0:03:00]}  Nc6 {[%clk 0:02:58]} 3. d4 {[%clk 0:03:01]}  exd4 {[%clk 0:02:54]} 4. Nxd4 {[%clk 0:03:02]}  Nf6 {[%clk 0:02:54]} 5. Nxc6 {[%clk 0:03:02]}  bxc6 {[%clk 0:02:55]} 6. e5 {[%clk 0:03:02]}  Nd5 {[%clk 0:02:55]} 7. c4 {[%clk 0:03:02]}  Nb6 {[%clk 0:02:50]} 8. Bd3 {[%clk 0:03:02]}  d6 {[%clk 0:02:44]} 9. exd6 {[%clk 0:02:59]}  cxd6 {[%clk 0:02:44]} 10. O-O {[%clk 0:02:56]}  Be7 {[%clk 0:02:44]} 11. Qc2 {[%clk 0:02:56]}  h6 {[%clk 0:02:40]} 12. Nc3 {[%clk 0:02:55]}  O-O {[%clk 0:02:39]} 13. Bf4 {[%clk 0:02:49]}  Be6 {[%clk 0:02:38]} 14. b3 {[%clk 0:02:49]}  Rc8 {[%clk 0:02:36]} 15. Rad1 {[%clk 0:02:43]}  d5 {[%clk 0:02:35]} 16. Rfe1 {[%clk 0:02:13]}  Bf6 {[%clk 0:02:32]} 17. c5 {[%clk 0:02:06]}  Nd7 {[%clk 0:02:28]} 18. b4 {[%clk 0:01:53]}  a5 {[%clk 0:02:23]} 19. a3 {[%clk 0:01:52]}  axb4 {[%clk 0:02:23]} 20. axb4 {[%clk 0:01:52]}  g5 {[%clk 0:02:20]} 21. Bg3 {[%clk 0:01:48]}  Bg7 {[%clk 0:02:19]} 22. Ne2 {[%clk 0:01:43]}  Qf6 {[%clk 0:02:09]} 23. Bd6 {[%clk 0:01:41]}  Rfe8 {[%clk 0:02:00]} 24. Ng3 {[%clk 0:01:42]}  Qc3 {[%clk 0:01:53]} 25. Qb1 {[%clk 0:01:33]}  Bg4 {[%clk 0:01:45]} 26. Rc1 {[%clk 0:01:24]}  Qb2 {[%clk 0:01:27]} 27. Qxb2 {[%clk 0:01:24]}  Bxb2 {[%clk 0:01:27]} 28. Rb1 {[%clk 0:01:25]}  Bc3 {[%clk 0:01:20]} 29. Rxe8+ {[%clk 0:01:24]}  Rxe8 {[%clk 0:01:21]} 30. h3 {[%clk 0:01:24]}  Be6 {[%clk 0:01:16]} 31. Nf5 {[%clk 0:01:15]}  Bxf5 {[%clk 0:00:55]} 32. Bxf5 {[%clk 0:01:16]}  Ne5 {[%clk 0:00:45]} 33. b5 {[%clk 0:01:12]}  cxb5 {[%clk 0:00:44]} 34. Rxb5 {[%clk 0:01:13]}  d4 {[%clk 0:00:41]} 35. Rb3 {[%clk 0:00:43]}  Ra8 {[%clk 0:00:25]} 36. Bxe5 {[%clk 0:00:40]}  Ra1+ {[%clk 0:00:18]} 37. Kh2 {[%clk 0:00:40]}  f6 {[%clk 0:00:16]} 38. c6 {[%clk 0:00:31]}  fxe5 {[%clk 0:00:13]} 39. c7 {[%clk 0:00:31]}  Bd2 {[%clk 0:00:05]} 40. c8=Q+ {[%clk 0:00:29]}  Kg7 {[%clk 0:00:06]} 41. Rb7+ {[%clk 0:00:28]}  Kf6 {[%clk 0:00:04]} 42. Qe6# {[%clk 0:00:28]} 1-0


[Site "https://www.chess.com"]

[Event "Titled Tuesday Blitz March 28 Early 2023"]
[White "Alinasab, Mobina"]
[Black "Bochnicka, Vladimir"]
[WhiteFideId "12528897"]
[BlackFideId "14943450"]
[WhiteElo "2141"]
[BlackElo "2094"]
[Result "1-0"]
[Round "09"]
[TimeControl "180+2"]
[Date "2023.03.28"]
[WhiteClock "0:00:10"]
[BlackClock "0:00:03"]

1. Nf3 {[%clk 0:03:00]}  c5 {[%clk 0:02:59]} 2. g3 {[%clk 0:02:59]}  Nc6 {[%clk 0:02:59]} 3. d4 {[%clk 0:02:58]}  cxd4 {[%clk 0:02:59]} 4. Nxd4 {[%clk 0:02:54]}  g6 {[%clk 0:02:59]} 5. b3 {[%clk 0:02:50]}  Bg7 {[%clk 0:02:59]} 6. Bb2 {[%clk 0:02:40]}  Qb6 {[%clk 0:02:39]} 7. e3 {[%clk 0:02:32]}  Nf6 {[%clk 0:02:35]} 8. Bg2 {[%clk 0:02:29]}  O-O {[%clk 0:02:33]} 9. O-O {[%clk 0:02:28]}  d6 {[%clk 0:02:32]} 10. c4 {[%clk 0:02:26]}  Bg4 {[%clk 0:02:26]} 11. Qc2 {[%clk 0:02:22]}  Nb4 {[%clk 0:02:20]} 12. Qd2 {[%clk 0:02:20]}  a5 {[%clk 0:02:11]} 13. Nc3 {[%clk 0:02:18]}  Rfd8 {[%clk 0:01:51]} 14. Rac1 {[%clk 0:02:17]}  d5 {[%clk 0:01:49]} 15. Na4 {[%clk 0:01:21]}  Qa7 {[%clk 0:01:41]} 16. a3 {[%clk 0:01:05]}  dxc4 {[%clk 0:01:35]} 17. axb4 {[%clk 0:01:04]}  e5 {[%clk 0:01:35]} 18. Rxc4 {[%clk 0:00:52]}  b5 {[%clk 0:01:22]} 19. Nxb5 {[%clk 0:00:48]}  Rxd2 {[%clk 0:01:21]} 20. Nxa7 {[%clk 0:00:48]}  Rxa7 {[%clk 0:01:22]} 21. bxa5 {[%clk 0:00:41]}  Be6 {[%clk 0:01:10]} 22. Rb4 {[%clk 0:00:37]}  Rxa5 {[%clk 0:01:02]} 23. Rb8+ {[%clk 0:00:30]}  Bf8 {[%clk 0:01:02]} 24. Bc3 {[%clk 0:00:28]}  Rad5 {[%clk 0:00:56]} 25. Bxd2 {[%clk 0:00:28]}  Rxd2 {[%clk 0:00:56]} 26. b4 {[%clk 0:00:25]}  Bc4 {[%clk 0:00:52]} 27. Rc1 {[%clk 0:00:23]}  Bb3 {[%clk 0:00:40]} 28. Nc5 {[%clk 0:00:22]}  Ba2 {[%clk 0:00:33]} 29. b5 {[%clk 0:00:21]}  Kg7 {[%clk 0:00:26]} 30. Ne4 {[%clk 0:00:18]}  Nxe4 {[%clk 0:00:23]} 31. Bxe4 {[%clk 0:00:19]}  Ba3 {[%clk 0:00:23]} 32. Re1 {[%clk 0:00:18]}  Rb2 {[%clk 0:00:21]} 33. b6 {[%clk 0:00:17]}  f5 {[%clk 0:00:17]} 34. Bg2 {[%clk 0:00:16]}  e4 {[%clk 0:00:17]} 35. b7 {[%clk 0:00:16]}  Bd5 {[%clk 0:00:17]} 36. Ra8 {[%clk 0:00:16]}  Bd6 {[%clk 0:00:10]} 37. Rd8 {[%clk 0:00:11]}  Bxb7 {[%clk 0:00:02]} 38. Rxd6 {[%clk 0:00:11]}  Kh6 {[%clk 0:00:02]} 39. h4 {[%clk 0:00:10]}  Rb3 {[%clk 0:00:02]} 40. Rc1 {[%clk 0:00:10]}  Rb4 {[%clk 0:00:02]} 41. Rd7 {[%clk 0:00:11]}  Kh5 {[%clk 0:00:03]} 42. Rxh7+ {[%clk 0:00:09]}  Kg4 {[%clk 0:00:03]} 43. Kh2 {[%clk 0:00:10]} 1-0


[Site "https://www.chess.com"]

[Event "Titled Tuesday Blitz March 28 Early 2023"]
[White "Shevtchenko, Olesya"]
[Black "Gutkin, Ilya"]
[WhiteFideId "24131890"]
[BlackFideId "16203470"]
[WhiteElo "2003"]
[BlackElo "2265"]
[Result "0-1"]
[Round "09"]
[TimeControl "180+2"]
[Date "2023.03.28"]
[WhiteClock "0:00:01"]
[BlackClock "0:00:23"]

1. e4 {[%clk 0:02:22]}  e6 {[%clk 0:02:57]} 2. d4 {[%clk 0:02:22]}  d5 {[%clk 0:02:56]} 3. Nd2 {[%clk 0:02:22]}  c5 {[%clk 0:02:55]} 4. Ngf3 {[%clk 0:02:22]}  cxd4 {[%clk 0:02:53]} 5. Nxd4 {[%clk 0:02:23]}  Nc6 {[%clk 0:02:52]} 6. Bb5 {[%clk 0:02:23]}  Bd7 {[%clk 0:02:50]} 7. Nxc6 {[%clk 0:02:24]}  bxc6 {[%clk 0:02:50]} 8. Bd3 {[%clk 0:02:23]}  g6 {[%clk 0:02:50]} 9. Qe2 {[%clk 0:02:20]}  Bg7 {[%clk 0:02:50]} 10. O-O {[%clk 0:02:21]}  Ne7 {[%clk 0:02:50]} 11. Nf3 {[%clk 0:02:18]}  O-O {[%clk 0:02:49]} 12. c3 {[%clk 0:02:17]}  Qb6 {[%clk 0:02:42]} 13. Be3 {[%clk 0:02:12]}  Qb7 {[%clk 0:02:32]} 14. Bc5 {[%clk 0:02:10]}  Rfe8 {[%clk 0:02:31]} 15. h4 {[%clk 0:02:00]}  e5 {[%clk 0:02:21]} 16. Qe3 {[%clk 0:01:32]}  dxe4 {[%clk 0:01:58]} 17. Bxe4 {[%clk 0:01:30]}  Nd5 {[%clk 0:01:58]} 18. Qe2 {[%clk 0:01:25]}  Nf4 {[%clk 0:01:46]} 19. Qe3 {[%clk 0:01:02]}  Qxb2 {[%clk 0:01:37]} 20. g3 {[%clk 0:00:31]}  Ne2+ {[%clk 0:01:27]} 21. Kg2 {[%clk 0:00:31]}  Nxc3 {[%clk 0:01:23]} 22. Nd2 {[%clk 0:00:17]}  Nxe4 {[%clk 0:01:07]} 23. Nxe4 {[%clk 0:00:17]}  Be6 {[%clk 0:01:08]} 24. Rfb1 {[%clk 0:00:14]}  Qc2 {[%clk 0:01:06]} 25. Rc1 {[%clk 0:00:13]}  Qa4 {[%clk 0:01:06]} 26. h5 {[%clk 0:00:12]}  Bd5 {[%clk 0:01:06]} 27. f3 {[%clk 0:00:11]}  f5 {[%clk 0:00:54]} 28. Nd6 {[%clk 0:00:09]}  Re6 {[%clk 0:00:49]} 29. Qg5 {[%clk 0:00:05]}  Qg4 {[%clk 0:00:39]} 30. Qxg4 {[%clk 0:00:03]}  fxg4 {[%clk 0:00:40]} 31. Ne4 {[%clk 0:00:03]}  gxf3+ {[%clk 0:00:36]} 32. Kxf3 {[%clk 0:00:03]}  Rf6+ {[%clk 0:00:32]} 33. Ke3 {[%clk 0:00:03]}  Bh6+ {[%clk 0:00:32]} 34. Kd3 {[%clk 0:00:02]}  Rf3+ {[%clk 0:00:31]} 35. Ke2 {[%clk 0:00:01]}  Bxe4 {[%clk 0:00:30]} 36. Rh1 {[%clk 0:00:02]}  Rc3 {[%clk 0:00:25]} 37. Rh2 {[%clk 0:00:01]}  Rc2+ {[%clk 0:00:23]} 38. Ke1 {[%clk 0:00:01]}  Rxh2 {[%clk 0:00:23]} 0-1


[Site "https://www.chess.com"]

[Event "Titled Tuesday Blitz March 28 Early 2023"]
[White "Mrudul Dehankar"]
[Black "Vovk, Orest"]
[WhiteFideId "25096990"]
[BlackFideId "14113490"]
[WhiteElo "2139"]
[BlackElo "2215"]
[Result "1/2-1/2"]
[Round "09"]
[TimeControl "180+2"]
[Date "2023.03.28"]
[WhiteClock "0:00:12"]
[BlackClock "0:00:06"]

1. e4 {[%clk 0:02:55]}  g5 {[%clk 0:02:45]} 2. d4 {[%clk 0:02:53]}  g4 {[%clk 0:02:42]} 3. Qxg4 {[%clk 0:02:49]}  d5 {[%clk 0:02:39]} 4. Qh5 {[%clk 0:02:37]}  Nf6 {[%clk 0:02:34]} 5. Qh4 {[%clk 0:02:33]}  Rg8 {[%clk 0:02:30]} 6. h3 {[%clk 0:02:14]}  dxe4 {[%clk 0:02:27]} 7. c3 {[%clk 0:02:09]}  Nc6 {[%clk 0:02:14]} 8. Nd2 {[%clk 0:02:08]}  Bf5 {[%clk 0:02:12]} 9. Ne2 {[%clk 0:02:06]}  e5 {[%clk 0:02:06]} 10. Ng3 {[%clk 0:02:05]}  Rxg3 {[%clk 0:01:58]} 11. Qxg3 {[%clk 0:01:58]}  exd4 {[%clk 0:01:58]} 12. Bb5 {[%clk 0:01:52]}  Qd5 {[%clk 0:01:35]} 13. Bxc6+ {[%clk 0:01:33]}  Qxc6 {[%clk 0:01:33]} 14. cxd4 {[%clk 0:01:32]}  O-O-O {[%clk 0:01:33]} 15. O-O {[%clk 0:01:32]}  Bd6 {[%clk 0:01:32]} 16. Qg5 {[%clk 0:01:30]}  Bxh3 {[%clk 0:01:24]} 17. d5 {[%clk 0:01:11]}  Qd7 {[%clk 0:01:18]} 18. Qh4 {[%clk 0:00:13]}  Rg8 {[%clk 0:01:09]} 19. g3 {[%clk 0:00:13]}  Bxf1 {[%clk 0:00:44]} 20. Nxf1 {[%clk 0:00:12]}  Ng4 {[%clk 0:00:36]} 21. Bg5 {[%clk 0:00:10]}  h6 {[%clk 0:00:29]} 22. Be3 {[%clk 0:00:10]}  f5 {[%clk 0:00:29]} 23. Bd4 {[%clk 0:00:10]}  f4 {[%clk 0:00:27]} 24. Re1 {[%clk 0:00:10]}  e3 {[%clk 0:00:25]} 25. f3 {[%clk 0:00:09]}  Nf2 {[%clk 0:00:20]} 26. Bxe3 {[%clk 0:00:09]}  fxe3 {[%clk 0:00:15]} 27. Rxe3 {[%clk 0:00:09]}  Bc5 {[%clk 0:00:13]} 28. Kxf2 {[%clk 0:00:08]}  Qxd5 {[%clk 0:00:11]} 29. Qh3+ {[%clk 0:00:04]}  Kb8 {[%clk 0:00:11]} 30. Qxh6 {[%clk 0:00:05]}  Qxa2 {[%clk 0:00:08]} 31. Qf6 {[%clk 0:00:04]}  Bxe3+ {[%clk 0:00:07]} 32. Nxe3 {[%clk 0:00:04]}  a6 {[%clk 0:00:07]} 33. g4 {[%clk 0:00:05]}  Qb3 {[%clk 0:00:04]} 34. g5 {[%clk 0:00:05]}  Re8 {[%clk 0:00:02]} 35. Qd4 {[%clk 0:00:05]}  Qb6 {[%clk 0:00:02]} 36. Qxb6 {[%clk 0:00:04]}  cxb6 {[%clk 0:00:03]} 37. f4 {[%clk 0:00:04]}  Kc7 {[%clk 0:00:03]} 38. f5 {[%clk 0:00:04]}  Kd6 {[%clk 0:00:04]} 39. g6 {[%clk 0:00:05]}  Ke5 {[%clk 0:00:03]} 40. Kf3 {[%clk 0:00:05]}  Rf8 {[%clk 0:00:02]} 41. g7 {[%clk 0:00:02]}  Rg8 {[%clk 0:00:03]} 42. Ng4+ {[%clk 0:00:03]}  Kxf5 {[%clk 0:00:02]} 43. Nh6+ {[%clk 0:00:03]}  Kg6 {[%clk 0:00:03]} 44. Nxg8 {[%clk 0:00:04]}  Kxg7 {[%clk 0:00:04]} 45. Ne7 {[%clk 0:00:05]}  Kf7 {[%clk 0:00:05]} 46. Nc8 {[%clk 0:00:05]}  b5 {[%clk 0:00:05]} 47. Nd6+ {[%clk 0:00:06]}  Ke6 {[%clk 0:00:06]} 48. Nxb7 {[%clk 0:00:07]}  Kd5 {[%clk 0:00:06]} 49. Na5 {[%clk 0:00:07]}  Kc5 {[%clk 0:00:06]} 50. Nb3+ {[%clk 0:00:06]}  Kb4 {[%clk 0:00:05]} 51. Nd2 {[%clk 0:00:07]}  a5 {[%clk 0:00:05]} 52. Ke3 {[%clk 0:00:07]}  a4 {[%clk 0:00:05]} 53. Kd3 {[%clk 0:00:08]}  a3 {[%clk 0:00:05]} 54. bxa3+ {[%clk 0:00:09]}  Kxa3 {[%clk 0:00:06]} 55. Kc2 {[%clk 0:00:09]}  b4 {[%clk 0:00:06]} 56. Nb3 {[%clk 0:00:10]}  Ka2 {[%clk 0:00:06]} 57. Nd4 {[%clk 0:00:10]}  Ka3 {[%clk 0:00:06]} 58. Nb3 {[%clk 0:00:11]}  Ka2 {[%clk 0:00:06]} 59. Nd4 {[%clk 0:00:12]}  b3+ {[%clk 0:00:06]} 60. Nxb3 {[%clk 0:00:12]} 1/2-1/2


[Site "https://www.chess.com"]

[Event "Titled Tuesday Blitz March 28 Early 2023"]
[White "Delorme, Alban"]
[Black "Shukhman, Anna"]
[WhiteFideId "623636"]
[BlackFideId "54180058"]
[WhiteElo "2196"]
[BlackElo "2125"]
[Result "1/2-1/2"]
[Round "09"]
[TimeControl "180+2"]
[Date "2023.03.28"]
[WhiteClock "0:00:04"]
[BlackClock "0:00:25"]

1. e4 {[%clk 0:03:00]}  Nf6 {[%clk 0:02:56]} 2. Nc3 {[%clk 0:02:59]}  e5 {[%clk 0:02:56]} 3. Nf3 {[%clk 0:02:58]}  Nc6 {[%clk 0:02:55]} 4. g3 {[%clk 0:02:57]}  Be7 {[%clk 0:02:50]} 5. Bg2 {[%clk 0:02:57]}  O-O {[%clk 0:02:51]} 6. O-O {[%clk 0:02:57]}  b6 {[%clk 0:02:51]} 7. d4 {[%clk 0:02:57]}  exd4 {[%clk 0:02:48]} 8. Nxd4 {[%clk 0:02:58]}  Bb7 {[%clk 0:02:37]} 9. Be3 {[%clk 0:02:56]}  Nxd4 {[%clk 0:02:35]} 10. Bxd4 {[%clk 0:02:56]}  d6 {[%clk 0:02:35]} 11. Re1 {[%clk 0:02:54]}  Re8 {[%clk 0:02:34]} 12. Qd2 {[%clk 0:02:52]}  Ng4 {[%clk 0:02:26]} 13. h3 {[%clk 0:02:41]}  Ne5 {[%clk 0:02:24]} 14. Rad1 {[%clk 0:02:28]}  c5 {[%clk 0:02:23]} 15. Bxe5 {[%clk 0:02:24]}  dxe5 {[%clk 0:02:21]} 16. Nd5 {[%clk 0:02:25]}  Bf8 {[%clk 0:02:18]} 17. Qe2 {[%clk 0:02:17]}  Qb8 {[%clk 0:02:15]} 18. h4 {[%clk 0:02:11]}  a5 {[%clk 0:02:12]} 19. Qg4 {[%clk 0:01:59]}  Re6 {[%clk 0:02:09]} 20. h5 {[%clk 0:01:37]}  h6 {[%clk 0:02:00]} 21. Qf3 {[%clk 0:01:34]}  Bxd5 {[%clk 0:01:54]} 22. exd5 {[%clk 0:01:31]}  Rf6 {[%clk 0:01:53]} 23. Qe4 {[%clk 0:01:30]}  Bd6 {[%clk 0:01:53]} 24. b3 {[%clk 0:01:18]}  Qc8 {[%clk 0:01:50]} 25. Rd3 {[%clk 0:01:13]}  a4 {[%clk 0:01:42]} 26. Rf3 {[%clk 0:01:07]}  Rxf3 {[%clk 0:01:40]} 27. Qxf3 {[%clk 0:01:08]}  axb3 {[%clk 0:01:39]} 28. axb3 {[%clk 0:01:01]}  Ra2 {[%clk 0:01:31]} 29. Qd3 {[%clk 0:00:58]}  Qg4 {[%clk 0:01:07]} 30. Qb5 {[%clk 0:00:57]}  Rxc2 {[%clk 0:00:57]} 31. Qe8+ {[%clk 0:00:53]}  Bf8 {[%clk 0:00:56]} 32. Qxe5 {[%clk 0:00:17]}  Rd2 {[%clk 0:00:48]} 33. Be4 {[%clk 0:00:15]}  Rd4 {[%clk 0:00:39]} 34. Kg2 {[%clk 0:00:14]}  b5 {[%clk 0:00:38]} 35. Bf3 {[%clk 0:00:14]}  Qg5 {[%clk 0:00:37]} 36. Qxg5 {[%clk 0:00:11]}  hxg5 {[%clk 0:00:38]} 37. Re8 {[%clk 0:00:11]}  f6 {[%clk 0:00:38]} 38. Kh3 {[%clk 0:00:06]}  Kf7 {[%clk 0:00:37]} 39. Rb8 {[%clk 0:00:06]}  c4 {[%clk 0:00:35]} 40. Rxb5 {[%clk 0:00:05]}  c3 {[%clk 0:00:35]} 41. Rb7+ {[%clk 0:00:05]}  Ke8 {[%clk 0:00:34]} 42. Rc7 {[%clk 0:00:04]}  Rd3 {[%clk 0:00:33]} 43. Be4 {[%clk 0:00:04]}  Rd4 {[%clk 0:00:33]} 44. Bg6+ {[%clk 0:00:04]}  Kd8 {[%clk 0:00:33]} 45. Rxc3 {[%clk 0:00:05]}  Bd6 {[%clk 0:00:34]} 46. Rd3 {[%clk 0:00:04]}  Rxd3 {[%clk 0:00:33]} 47. Bxd3 {[%clk 0:00:04]}  Ke7 {[%clk 0:00:31]} 48. Kg4 {[%clk 0:00:04]}  Kf8 {[%clk 0:00:31]} 49. Kf5 {[%clk 0:00:05]}  Ke7 {[%clk 0:00:30]} 50. Bb5 {[%clk 0:00:04]}  Bc5 {[%clk 0:00:30]} 51. f4 {[%clk 0:00:04]}  gxf4 {[%clk 0:00:30]} 52. gxf4 {[%clk 0:00:05]}  Bd6 {[%clk 0:00:30]} 53. Ke4 {[%clk 0:00:05]}  Bc5 {[%clk 0:00:29]} 54. Kf5 {[%clk 0:00:04]}  Bd6 {[%clk 0:00:30]} 55. Be2 {[%clk 0:00:04]}  Bc5 {[%clk 0:00:30]} 56. Bf3 {[%clk 0:00:05]}  Bd6 {[%clk 0:00:30]} 57. Kg6 {[%clk 0:00:06]}  Kf8 {[%clk 0:00:30]} 58. Kf5 {[%clk 0:00:05]}  Ke7 {[%clk 0:00:30]} 59. Bg2 {[%clk 0:00:06]}  Kf7 {[%clk 0:00:25]} 60. Bf3 {[%clk 0:00:04]}  Ke7 {[%clk 0:00:25]} 1/2-1/2


[Site "https://www.chess.com"]

[Event "Titled Tuesday Blitz March 28 Early 2023"]
[White "Manukyan, Sargis A."]
[Black "Rodriguez Santiago, Jaime"]
[WhiteFideId "13303970"]
[BlackFideId "3100898"]
[WhiteElo "2187"]
[BlackElo "2025"]
[Result "0-1"]
[Round "09"]
[TimeControl "180+2"]
[Date "2023.03.28"]
[WhiteClock "0:00:09"]
[BlackClock "0:00:11"]

1. d4 {[%clk 0:03:00]}  Nf6 {[%clk 0:02:58]} 2. c4 {[%clk 0:03:00]}  e6 {[%clk 0:02:58]} 3. Nc3 {[%clk 0:03:01]}  d5 {[%clk 0:02:57]} 4. Nf3 {[%clk 0:03:00]}  c5 {[%clk 0:02:57]} 5. cxd5 {[%clk 0:03:00]}  Nxd5 {[%clk 0:02:56]} 6. e4 {[%clk 0:02:59]}  Nxc3 {[%clk 0:02:56]} 7. bxc3 {[%clk 0:03:00]}  cxd4 {[%clk 0:02:57]} 8. cxd4 {[%clk 0:03:01]}  Bb4+ {[%clk 0:02:57]} 9. Bd2 {[%clk 0:03:02]}  Bxd2+ {[%clk 0:02:58]} 10. Qxd2 {[%clk 0:03:02]}  O-O {[%clk 0:02:58]} 11. Bc4 {[%clk 0:03:01]}  Nd7 {[%clk 0:02:58]} 12. O-O {[%clk 0:03:01]}  b6 {[%clk 0:02:58]} 13. Rad1 {[%clk 0:03:00]}  Bb7 {[%clk 0:02:58]} 14. Rfe1 {[%clk 0:03:00]}  Rc8 {[%clk 0:02:57]} 15. Bb3 {[%clk 0:03:01]}  b5 {[%clk 0:02:51]} 16. h3 {[%clk 0:02:54]}  h6 {[%clk 0:02:48]} 17. Qf4 {[%clk 0:02:50]}  Qc7 {[%clk 0:02:39]} 18. e5 {[%clk 0:02:44]}  Rfd8 {[%clk 0:02:23]} 19. d5 {[%clk 0:02:43]}  exd5 {[%clk 0:02:07]} 20. Nd4 {[%clk 0:02:20]}  a6 {[%clk 0:01:59]} 21. Qg3 {[%clk 0:02:19]}  Nc5 {[%clk 0:01:53]} 22. Rc1 {[%clk 0:02:15]}  Qd7 {[%clk 0:01:44]} 23. Bc2 {[%clk 0:02:11]}  Ne4 {[%clk 0:01:34]} 24. Qf4 {[%clk 0:02:01]}  Rc4 {[%clk 0:01:27]} 25. Rcd1 {[%clk 0:01:23]}  Qc7 {[%clk 0:01:09]} 26. Bb3 {[%clk 0:01:13]}  Rc3 {[%clk 0:00:53]} 27. f3 {[%clk 0:00:59]}  Nc5 {[%clk 0:00:52]} 28. Bc2 {[%clk 0:00:48]}  Ne6 {[%clk 0:00:44]} 29. Nxe6 {[%clk 0:00:47]}  fxe6 {[%clk 0:00:45]} 30. Bb1 {[%clk 0:00:47]}  Rf8 {[%clk 0:00:42]} 31. Qg3 {[%clk 0:00:44]}  Qf7 {[%clk 0:00:40]} 32. Rd4 {[%clk 0:00:40]}  Rc4 {[%clk 0:00:39]} 33. Red1 {[%clk 0:00:38]}  Rfc8 {[%clk 0:00:36]} 34. h4 {[%clk 0:00:33]}  Qe7 {[%clk 0:00:35]} 35. Kh2 {[%clk 0:00:32]}  Rxd4 {[%clk 0:00:34]} 36. Rxd4 {[%clk 0:00:31]}  Rc4 {[%clk 0:00:35]} 37. Rf4 {[%clk 0:00:23]}  Rxf4 {[%clk 0:00:33]} 38. Qxf4 {[%clk 0:00:24]}  Bc6 {[%clk 0:00:32]} 39. h5 {[%clk 0:00:22]}  Be8 {[%clk 0:00:32]} 40. g4 {[%clk 0:00:22]}  Bf7 {[%clk 0:00:31]} 41. Kg3 {[%clk 0:00:21]}  Qd7 {[%clk 0:00:29]} 42. Qd4 {[%clk 0:00:21]}  Qc7 {[%clk 0:00:27]} 43. Bd3 {[%clk 0:00:20]}  Kf8 {[%clk 0:00:26]} 44. Qb4+ {[%clk 0:00:19]}  Kg8 {[%clk 0:00:25]} 45. Qd4 {[%clk 0:00:19]}  Be8 {[%clk 0:00:22]} 46. f4 {[%clk 0:00:19]}  Bd7 {[%clk 0:00:20]} 47. f5 {[%clk 0:00:19]}  a5 {[%clk 0:00:17]} 48. fxe6 {[%clk 0:00:15]}  Bxe6 {[%clk 0:00:17]} 49. Bf5 {[%clk 0:00:15]}  Kf7 {[%clk 0:00:16]} 50. Qf2 {[%clk 0:00:14]}  Ke7 {[%clk 0:00:16]} 51. Qd4 {[%clk 0:00:13]}  b4 {[%clk 0:00:15]} 52. Bd3 {[%clk 0:00:12]}  Qc3 {[%clk 0:00:14]} 53. Qa7+ {[%clk 0:00:11]}  Bd7 {[%clk 0:00:15]} 54. Qe3 {[%clk 0:00:09]}  d4 {[%clk 0:00:15]} 55. Qf3 {[%clk 0:00:08]}  Bc6 {[%clk 0:00:14]} 56. Qf1 {[%clk 0:00:07]}  Bb5 {[%clk 0:00:14]} 57. Kh4 {[%clk 0:00:07]}  Qxd3 {[%clk 0:00:14]} 58. Qf4 {[%clk 0:00:07]}  Qe3 {[%clk 0:00:10]} 59. Qf5 {[%clk 0:00:05]}  Qe1+ {[%clk 0:00:10]} 60. Kh3 {[%clk 0:00:05]}  Bf1+ {[%clk 0:00:10]} 61. Kh2 {[%clk 0:00:05]}  Qe2+ {[%clk 0:00:11]} 62. Kg3 {[%clk 0:00:05]}  Qg2+ {[%clk 0:00:11]} 63. Kf4 {[%clk 0:00:04]}  Qf2+ {[%clk 0:00:11]} 64. Ke4 {[%clk 0:00:04]}  Qxf5+ {[%clk 0:00:10]} 65. gxf5 {[%clk 0:00:05]}  d3 {[%clk 0:00:10]} 66. Ke3 {[%clk 0:00:06]}  Be2 {[%clk 0:00:10]} 67. Kd2 {[%clk 0:00:06]}  a4 {[%clk 0:00:09]} 68. Kc1 {[%clk 0:00:07]}  b3 {[%clk 0:00:09]} 69. axb3 {[%clk 0:00:08]}  axb3 {[%clk 0:00:10]} 70. Kd2 {[%clk 0:00:04]}  b2 {[%clk 0:00:09]} 71. Ke3 {[%clk 0:00:04]}  b1=Q {[%clk 0:00:10]} 72. f6+ {[%clk 0:00:05]}  gxf6 {[%clk 0:00:10]} 73. exf6+ {[%clk 0:00:06]}  Kxf6 {[%clk 0:00:10]} 74. Kf2 {[%clk 0:00:07]}  Qf1+ {[%clk 0:00:10]} 75. Kg3 {[%clk 0:00:08]}  Qe1+ {[%clk 0:00:09]} 76. Kf4 {[%clk 0:00:08]}  Qf2+ {[%clk 0:00:09]} 77. Ke4 {[%clk 0:00:08]}  Qf3+ {[%clk 0:00:09]} 78. Kd4 {[%clk 0:00:09]}  d2 {[%clk 0:00:10]} 79. Kc5 {[%clk 0:00:09]}  d1=Q {[%clk 0:00:10]} 80. Kb4 {[%clk 0:00:09]}  Qd4+ {[%clk 0:00:11]} 81. Ka5 {[%clk 0:00:09]}  Qf5# {[%clk 0:00:11]} 0-1


[Site "https://www.chess.com"]